Cogmind - Beta 13 @@@ ROGUE MODE // 2024.05.11 @ 14:38:47 Player: Cheeriohz Result: Destroyed by G-47 Trooper with Particle Gun Performance ------------- Evolutions (2) 1000 Regions Visited (5) 1000 Robots Destroyed (93) 465 Value Destroyed (2985) 2985 Prototype IDs (13) 260 Alien Tech Used (0) 0 Bonus (402) 402 TOTAL SCORE: 6112 Bonus ------- High Alert Combat Kills 202 Entered Garrisons 200 Cogmind --------- Core Integrity 0/550 Matter 290/300 Energy 225/265 System Corruption 4% Temperature Cool (29) Movement Treading (160) Location -8/Materials Parts ------- > --- POWER (1) -------- Improved Ion Engine > --- PROPULSION (3) --- Light Treads Light Treads Armored Wheel > --- UTILITY (5) ------ Improved Heat Sink Large Storage Unit Improved Signal Interpreter Improved Light Armor Plating Makeshift Hacking Suite > --- WEAPON (2) ------- Gatling Laser Gatling Laser > --- INVENTORY (15) --- Light Angular Momentum Engine Armored Wheel Advanced Heat Sink High-capacity Matter Pod (200) Structural Scanner Improved Sensor Array Advanced Targeting Computer System Shield Long-range Tractor Beam Gatling Laser Gatling Laser Improved EM Pulse Cannon Long-range Missile Launcher Long-range Missile Launcher Power Maul Peak State ------------ > --- POWER ------------ Ion Engine Light Nuclear Core Light Nuclear Core > --- PROPULSION ------- Titanium Leg Arachnoskeleton > --- UTILITY ---------- Improved Heat Sink Large Storage Unit Structural Scanner Improved Light Armor Plating Power Bank > --- WEAPON ----------- Field Laser Heavy Particle Cannon > --- INVENTORY -------- Light Ion Engine Improved Heat Sink High-capacity Matter Pod Structural Scanner Improved Light Armor Plating Insulated Plating Scrap Shield Makeshift Hacking Suite Battle Rifle Battle Rifle Improved Light Cannon Improved Light Cannon Maul [Rating: 57] Favorites ----------- Power Ion Engine Engine Ion Engine Power Core Light Nuclear Core Propulsion Light Treads Treads Light Treads Leg Aluminum Leg Wheel Armored Wheel Utility Large Storage Unit Device Power Bank Storage Large Storage Unit Processor Improved Signal Interpreter Hackware Makeshift Hacking Suite Protection Scrap Shield Weapon Battle Rifle Energy Gun Gatling Laser Energy Cannon Subdweller Beam Cannon Ballistic Gun Battle Rifle Ballistic Cannon Gauss Cannon Launcher Grenade Launcher Impact Weapon Maul Build | -11 -10 -10 -8 -8 -8 ------- Run | Yrd Mat Sub Mat Gar Mat Slots Evolved 4 | . . . 4 . . Power . | . . . . . . Propulsion 1 | . . . 1 . . Utility 3 | . . . 3 . . Weapon . | . . . . . . Parts Attached 122 | 1 15 19 46 33 8 Power 8 | . 1 . 5 2 . Engine 5 | . 1 . 2 2 . Core 3 | . . . 3 . . Reactor . | . . . . . . Propulsion 29 | . . 5 14 9 1 Treads 17 | . . 5 3 8 1 Leg 6 | . . . 6 . . Wheel 6 | . . . 5 1 . Hover . | . . . . . . Flight . | . . . . . . Utility 36 | 1 4 4 13 9 5 Device 16 | 1 1 1 8 2 3 Storage 2 | . 1 1 . . . Processor 1 | . . . . . 1 Hackware 1 | . . . . 1 . Protection 16 | . 2 2 5 6 1 Artifact . | . . . . . . Weapon 49 | . 10 10 14 13 2 Energy Gun 8 | . 1 2 3 . 2 Energy Cannon 9 | . . 4 5 . . Ballistic Gun 10 | . 4 4 2 . . Ballistic Cannon 14 | . 2 . 4 8 . Launcher 3 | . 3 . . . . Special Weapon . | . . . . . . Impact Weapon 5 | . . . . 5 . Slashing Weapon . | . . . . . . Piercing Weapon . | . . . . . . Special Melee Weapon . | . . . . . . Unidentified Prototypes 1 | . . . 1 . . Parts Lost 27 | . . . 11 16 . Power 6 | . . . 2 4 . Propulsion 7 | . . . 2 5 . Utility 12 | . . . 6 6 . Weapon 2 | . . . 1 1 . Highest Loss Streak 7 | . . . 6 7 . To Critical Strikes . | . . . . . . Average Slot Usage (%) 88 | . 99 82 79 94 99 Engine 11 | . 14 13 7 8 9 Core 1 | . . . 7 4 . Treads 18 | . . 26 3 20 18 Leg 5 | . 28 . 12 . . Wheel 1 | . . . 1 3 9 Device 7 | . 10 1 18 13 11 Storage 6 | . 14 2 6 8 9 Hackware 1 | . . . . 3 9 Protection 9 | . 3 11 6 13 9 Energy Gun 2 | . 2 2 3 . 10 Energy Cannon 4 | . . 9 1 . . Ballistic Gun 9 | . 23 11 1 . . Ballistic Cannon 5 | . 2 3 6 10 6 Impact Weapon 1 | . . . . 6 . Naked Turns . | . . . . . . Heaviest Build 60 | 13 40 40 60 60 50 Greatest Support 67 | 20 20 40 67 60 40 Greatest Overweight (x) 4 | . 1 . 2 4 4 Average Overweight (x) . | . . . . 1 1 Largest Inventory Capacity 15 | 8 15 15 15 15 15 Average Capacity 10 | 8 13 7 15 15 15 Most Carried 15 | 7 15 15 15 15 15 Average Carried 10 | 6 11 6 14 13 14 Final Capacity 15 | 8 15 15 15 15 15 Final Carried 15 | 7 15 14 15 15 15 Class Distribution -------------------- 66% | Mutant 21% | Subdweller-Mutant 11% | Scavenger-Mutant Dominant Class ---------------- Mutant | -10/Materials Mutant | -10/Subcaves Mutant | -8/Materials Scavenger-Mutant | -8/Garrison Mutant | -8/Materials Resources | -11 -10 -10 -8 -8 -8 ----------- Run | Yrd Mat Sub Mat Gar Mat Matter Collected 3255 | 237 340 583 771 998 326 Remotely . | . . . . . . Salvage Created 3004 | 172 411 626 838 735 222 Parts 176 | 16 33 50 31 25 21 Haulers Intercepted 3 | . 2 . 1 . . Recyclers Shooed . | . . . . . . Parts Field Recycled . | . . . . . . Retrieved Matter . | . . . . . . Parts Self-Destructed 17 | . . 17 . . . Prevented . | . . . . . . Kills | -11 -10 -10 -8 -8 -8 ------- Run | Yrd Mat Sub Mat Gar Mat Combat Hostiles Destroyed 70 | . 12 18 14 22 4 Melee 5 | . . . . 5 . Guns 12 | . 4 2 3 . 3 Cannons 41 | . . 16 10 14 1 AOE 8 | . 8 . . . . Classes Destroyed 13 | 2 6 1 3 1 . Worker 4 | . 2 . . . 2 Builder 3 | . . . 3 . . Tunneler 6 | 5 1 . . . . Hauler 3 | . 2 . 1 . . Recycler 4 | 1 . . 3 . . Operator 1 | . 1 . . . . Watcher 2 | . 1 . . . 1 Swarmer 13 | . 6 3 . 4 . Grunt 29 | . 6 . 9 11 3 Brawler 1 | . . . 1 . . Sentry 11 | . . . 4 6 1 Hunter 1 | . . . . 1 . Subdweller 15 | . . 15 . . . Best Kill Streak 5 | 4 4 3 4 5 4 Combat Bots Only 5 | . 3 3 3 5 3 Max Kills in Single Turn 3 | 1 3 1 1 2 2 Gunslinging . | . . . . . . Exploded 3 | . 3 . . . . Melee 1 | . . . . 1 . Uniques/NPCs Destroyed . | . . . . . . Combat | -11 -10 -10 -8 -8 -8 -------- Run | Yrd Mat Sub Mat Gar Mat Hostile Shots Fired 423 | . 22 49 176 166 10 Missed 91 | . 7 20 37 25 2 Damage Taken 5015 | . 191 602 2104 1994 124 Core 663 | . 82 26 258 221 76 Absorbed by Shields 192 | . . . 107 85 . Redirected to Shielding 52 | . . . . 52 . Core Remaining (%) 78 | 100 . 56 . . . Volleys Fired 288 | 9 44 79 93 51 12 Largest 2 | 2 2 2 2 2 2 Hottest 160 | 70 70 160 150 96 160 Shots Fired 479 | 18 82 108 164 83 24 Gun 209 | 18 76 30 65 . 20 Cannon 264 | . . 78 99 83 4 Launcher 6 | . 6 . . . . Special . | . . . . . . Kinetic 291 | 9 71 29 95 83 4 Thermal 182 | 9 5 79 69 . 20 Explosive 6 | . 6 . . . . Electromagnetic . | . . . . . . Robot Hit Streak 14 | 4 6 14 11 11 9 Robot Miss Streak 6 | 2 6 3 5 2 4 Penetration Max 1 | . . . 1 1 . Secondary Targets 2 | . 1 . 1 . . Max Gunslinging Chain 1 | . 1 . 1 . . Shots Hit Robots 312 | 10 49 51 105 79 18 Core Hits 131 | 7 27 23 32 22 20 Critical Kills 2 | . 1 . . 1 . Critical Parts Destroyed 7 | . . . 1 6 . Critical Strikes 32 | . 1 . 10 21 . Burn 3 | . . . 3 . . Destroy 2 | . 1 . 1 . . Blast 19 | . . . 6 13 . Smash 8 | . . . . 8 . Melee Attacks 42 | . . . . 42 . Impact 42 | . . . . 42 . Slashing . | . . . . . . Piercing . | . . . . . . Sneak Attacks . | . . . . . . Combat Hostiles . | . . . . . . Follow-up Attacks 6 | . . . . 6 . Damage Inflicted 8107 | 125 1060 1250 2441 2682 549 Guns 2201 | 125 626 220 784 . 446 Cannons 4268 | . . 1030 1657 1482 99 Explosions 434 | . 434 . . . . Melee 1200 | . . . . 1200 . Ramming 4 | . . . . . 4 Kinetic 4242 | 50 614 443 1554 1482 99 Thermal 2227 | 75 12 807 887 . 446 Explosive 434 | . 434 . . . . Electromagnetic . | . . . . . . Impact 1200 | . . . . 1200 . Slashing . | . . . . . . Piercing . | . . . . . . Highest Corruption 4 | . . . 4 4 4 Average Corruption 4 | . . . 4 4 4 Corruption Purged . | . . . . . . Corruption Blocked . | . . . . . . Effects 69 | . . . 22 30 17 Message Errors 17 | . . . 5 7 5 Matter Fused 15 | . . . 5 5 5 Heat Flow Errors 5 | . . . . 4 1 Energy Discharges 9 | . . . 3 3 3 Parts Rejected 2 | . . . 1 1 . Data Loss (minor) 13 | . . . 5 5 3 Data Loss (major) 3 | . . . 1 2 . Weapon Failures 5 | . . . 2 3 . Overload Shots . | . . . . . . Overflow Damage 370 | . 25 9 36 300 . Projectiles 52 | . . 9 36 7 . Explosions 25 | . 25 . . . . Melee 293 | . . . . 293 . Knockbacks 24 | . . 5 11 8 . Impact 1 | . . . . 1 . Kinetic 23 | . . 5 11 7 . Secondary . | . . . . . . Self-Inflicted Damage 36 | . 36 . . . . Shots 2 | . 2 . . . . Rammed 1 | . . . . . 1 Targets Rammed 1 | . . . . . 1 Kicked . | . . . . . . Crushed . | . . . . . . Highest Temperature 555 | 45 18 78 555 463 243 Average Temperature 140 | 17 7 18 194 106 88 Received Heat Transfer 2302 | . 57 120 1216 855 54 Effects 27 | . . . 20 7 . Shutdowns 3 | . . . 2 1 . Energy Bleed 2 | . . . 1 1 . Interference 9 | . . . 9 . . Matter Decay 2 | . . . 2 . . Short Circuit 4 | . . . 3 1 . Damage (minor) 3 | . . . 3 . . Damage (major) 4 | . . . . 4 . Siege Activations . | . . . . . . Robots Corrupted . | . . . . . . Combat Hostiles . | . . . . . . Parts Fried 1 | . . . . 1 . Impact Corruptions 12 | . . . . 12 . Robots Melted 1 | . . . 1 . . Combat Hostiles 1 | . . . 1 . . Parts Melted 7 | . . 2 5 . . Heat Transferred 4306 | 222 37 1086 1961 . 1000 Parts Sabotaged . | . . . . . . Parts Stolen . | . . . . . . Parts Stripped . | . . . . . . Power Chain Reactions . | . . . . . . Alert | -11 -10 -10 -8 -8 -8 ------- Run | Yrd Mat Sub Mat Gar Mat Peak Influence 846 | 30 286 . 273 846 457 Initial 412 | . 19 . 74 146 412 Average 262 | 14 120 . 126 496 282 Maximum Alert Level 3 | . 1 . 1 3 2 Low Security (%) 49 | 100 76 . 85 6 26 Level 1 24 | . 23 . 14 20 51 Level 2 19 | . . . . 52 22 Level 3 6 | . . . . 20 . Level 4 . | . . . . . . Level 5 . | . . . . . . High Security . | . . . . . . Max Security . | . . . . . . Squads Dispatched 7 | . 3 . 3 . 1 Investigation 3 | . 1 . 2 . . Extermination . | . . . . . . Reinforcement 4 | . 2 . 1 . 1 Assault . | . . . . . . Garrison . | . . . . . . Intercept . | . . . . . . Searches Triggered . | . . . . . . Construction Impeded . | . . . . . . Haulers Reinforced . | . . . . . . Active Scanning Responses . | . . . . . . Cargo Convoy Interrupts . | . . . . . . Stealth | -11 -10 -10 -8 -8 -8 --------- Run | Yrd Mat Sub Mat Gar Mat Distress Signals 5 | . 3 . 2 . . Communications Jammed . | . . . . . . Distress Signals . | . . . . . . Times Spotted 115 | . 26 22 28 28 11 Peak Tracking Total 6 | . 5 5 6 6 4 Tactical Retreats 13 | . . 3 3 6 1 Traps | -11 -10 -10 -8 -8 -8 ------- Run | Yrd Mat Sub Mat Gar Mat Traps Triggered 5 | . 1 1 1 2 . Indirectly . | . . . . . . Trap Hack Attempts . | . . . . . . Triggered . | . . . . . . Disarmed 9 | . 9 . . . . Reprogrammed . | . . . . . . Reused . | . . . . . . Traps Extracted . | . . . . . . Installed . | . . . . . . Triggered . | . . . . . . Machines | -11 -10 -10 -8 -8 -8 ---------- Run | Yrd Mat Sub Mat Gar Mat Machines Disabled 5 | . . 1 1 3 . Max in Single Turn 2 | . . 1 1 2 . Phase Generator 1 | . . . . 1 . Machines Repaired . | . . . . . . Machines Dismantled . | . . . . . . Machines Sabotaged . | . . . . . . Overloaded Fab Kills . | . . . . . . Hacking | -11 -10 -10 -8 -8 -8 --------- Run | Yrd Mat Sub Mat Gar Mat Machines Accessed 16 | . 5 1 5 3 2 Terminals 14 | . 5 . 4 3 2 Fabricators . | . . . . . . Repair Stations . | . . . . . . Recycling Units . | . . . . . . Scanalyzers . | . . . . . . Garrison Access 1 | . . . 1 . . Total Hacks 47 | . 23 1 10 5 8 Successful 18 | . 11 1 2 2 2 Failed 28 | . 11 . 8 3 6 Catastrophic 3 | . 1 . 1 . 1 Database Lockouts 1 | . 1 . . . . Manual 33 | . 18 . 6 1 8 Terminals 44 | . 23 . 8 5 8 Fabricators . | . . . . . . Repair Stations . | . . . . . . Recycling Units . | . . . . . . Scanalyzers . | . . . . . . Garrison Access 2 | . . . 2 . . Terminal Hacks 13 | . 9 1 . 2 1 Robot Analysis 2 | . 2 . . . . Prototype ID Bank 1 | . 1 . . . . Unreport Threat 3 | . 2 . . . 1 Locate Traps 2 | . 2 . . . . Disarm Traps 2 | . 2 . . . . Garrison Registry 1 | . . . . 1 . Patrol Navigation 1 | . . . . 1 . Derelict Proto ID Bank 1 | . . 1 . . . Fabricator Hacks . | . . . . . . Repair Station Hacks . | . . . . . . Recycling Unit Hacks . | . . . . . . Scanalyzer . | . . . . . . Garrison Access Hacks 1 | . . . 1 . . Unlock Access 1 | . . . 1 . . Unauthorized Hacks 4 | . 2 . 1 . 1 Terminals 4 | . 2 . 1 . 1 Botnet 4 | . 2 . 1 . 1 Fabricators . | . . . . . . Repair Stations . | . . . . . . Recycling Units . | . . . . . . Scanalyzers . | . . . . . . Garrison Access . | . . . . . . Data Cores Recovered . | . . . . . . Used . | . . . . . . Hacking Detections 14 | . 5 . 5 2 2 Full Trace Events 1 | . . . 1 . . Feedback Events . | . . . . . . Feedback Blocked . | . . . . . . Robot Schematics Acquired . | . . . . . . Robots Built . | . . . . . . Authchips . | . . . . . . Time . | . . . . . . Total Robot Build Rating . | . . . . . . Part Schematics Acquired . | . . . . . . Parts Built . | . . . . . . Authchips . | . . . . . . Time . | . . . . . . Total Part Build Rating . | . . . . . . Parts Repaired . | . . . . . . Time . | . . . . . . Parts Recycled . | . . . . . . Recycled Matter . | . . . . . . Retrieved Matter . | . . . . . . Retrieved Components . | . . . . . . Parts Scanalyzed . | . . . . . . Part Schematics Acquired . | . . . . . . Parts Damaged . | . . . . . . Bothacking | -11 -10 -10 -8 -8 -8 ------------ Run | Yrd Mat Sub Mat Gar Mat Used RIF Installer . | . . . . . . Robots Hacked . | . . . . . . Non-combat . | . . . . . . Combat . | . . . . . . Robot Hacks Applied . | . . . . . . Relay Couplers Released . | . . . . . . Fabnet Peak Effective % . | . . . . . . Robots Rewired . | . . . . . . Allies Hacked . | . . . . . . Hacks Repelled . | . . . . . . Allies | -11 -10 -10 -8 -8 -8 -------- Run | Yrd Mat Sub Mat Gar Mat Total Allies . | . . . . . . Largest Group . | . . . . . . Highest-Rated Group . | . . . . . . Highest-Rated Ally . | . . . . . . Total Orders . | . . . . . . Ally Attacks . | . . . . . . Total Damage . | . . . . . . Kills . | . . . . . . Allies Corrupted . | . . . . . . Allies Melted . | . . . . . . Intel | -11 -10 -10 -8 -8 -8 ------- Run | Yrd Mat Sub Mat Gar Mat Robot Analysis Total 2 | . 2 . . . . Derelict Logs Recovered 1 | . . 1 . . . Drone Launches . | . . . . . . Drone Recoveries . | . . . . . . Exploration | -11 -10 -10 -8 -8 -8 ------------- Run | Yrd Mat Sub Mat Gar Mat Turns Passed 7719 | 88 1109 3752 889 1234 647 Spaces Moved 3780 | 31 535 2021 389 537 267 Core . | . . . . . . Treads 2568 | . . 2021 63 332 152 Legs 863 | 31 535 . 297 . . Wheels 349 | . . . 29 205 115 Hover . | . . . . . . Flight . | . . . . . . Fastest Speed 90 | 120 120 160 90 135 135 Average Speed 159 | 120 172 160 129 165 167 Slowest Speed 320 | 120 190 160 320 320 240 Overloaded Moves . | . . . . . . Propulsion Burnouts . | . . . . . . Robots Hopped . | . . . . . . Cave-ins Triggered . | . . . . . . Exploration Rate (%) 49 | 4 88 76 36 63 29 Regions Visited 5 Branch Regions 1 Pre-discovered Areas 1 | . . 1 . . . Known Exits Taken 1 | . . . 1 . . Unknown Exits Taken 3 | 1 1 1 . . . Scrap Searched 10 | . . 10 . . . Spaces Dug 15 | . 12 . . 3 . Terrain Destroyed 149 | . 24 2 38 85 . Melee 3 | . . . . 3 . Projectile 42 | . . 2 38 2 . AOE 104 | . 24 . . 80 . Terrain Rammed . | . . . . . . Walls Destroyed . | . . . . . . Machines Disabled . | . . . . . . Actions | -11 -10 -10 -8 -8 -8 --------- Run | Yrd Mat Sub Mat Gar Mat Total 4906 | 63 640 2433 608 718 444 Wait 486 | 22 13 257 26 34 134 Move 3775 | 30 534 2020 388 536 267 Hop . | . . . . . . Pick Up 79 | 1 18 20 19 13 8 Fast Attach 57 | 1 3 10 30 9 4 Attach 17 | . . 1 8 8 . Detach 12 | . . . 10 1 1 Swap 48 | . 12 8 8 16 4 Drop 90 | . 16 26 26 9 13 Fire 288 | 9 44 79 93 51 12 Melee 36 | . . . . 36 . Ram . | . . . . . . Kick . | . . . . . . Crush 1 | . . . . . 1 Escape Stasis 2 | . . . . 2 . Rewire 3 | . . . . 3 . Trap . | . . . . . . Miscellaneous 12 | . . 12 . . . Route ------- -11/Scrapyard -10/Materials (discovered 5 exits: [*Mat x3] / [*Min] / *Sub) -10/Subcaves (discovered 2 exits: *Mat x2) -8/Materials (discovered 2 exits: [*Fac] / Gar) -8/Garrison (discovered 3 exits: *Mat x3) -8/Materials History --------- Turn | Location | Event 11 | -11/Scrapyard | Discovered new exit (range 3) 89 | -11/Scrapyard | Entered Materials 164 | -10/Materials | Discovered new exit (range 5) 307 | -10/Materials | Build established: Mutant 333 | -10/Materials | Discovered new exit (range 10) 477 | -10/Materials | Central database locked down 745 | -10/Materials | Discovered new exit (range 3) 938 | -10/Materials | Discovered new exit (range 9) 1182 | -10/Materials | Discovered new exit (range 8) 1198 | -10/Materials | Entered Subcaves 1202 | -10/Subcaves | Discovered new exit (range 13) 1304 | -10/Subcaves | Shifting Twisted Machinery released Sub. Monowheel 1322 | -10/Subcaves | Shifting Twisted Machinery released Sub. Power Source 1915 | -10/Subcaves | Discovered new exit (range 9) 2178 | -10/Subcaves | Learned location of Zion (-6) 2178 | -10/Subcaves | Met a Zionite searching for "candidates" 2269 | -10/Subcaves | Build established: Subdweller-Mutant 2895 | -10/Subcaves | A swath of the cavern ceiling suddenly collapsed 3024 | -10/Subcaves | Visited 4L-MR0's lab 3024 | -10/Subcaves | Learned Materials terminal intel 3044 | -10/Subcaves | Found Arachnoskeleton 3287 | -10/Subcaves | Ambushed by Subdwellers from Twisted Machinery 3320 | -10/Subcaves | Shifting Twisted Machinery released Sub. Power Source 3386 | -10/Subcaves | Shifting Twisted Machinery released Sub. Machine Gun 3543 | -10/Subcaves | A Subdweller sparked back to life 3543 | -10/Subcaves | A Subdweller sparked back to life 3543 | -10/Subcaves | A Subdweller sparked back to life 3633 | -10/Subcaves | Found Power Bank 3925 | -10/Subcaves | Build established: Mutant 4307 | -10/Subcaves | Attached Power Bank, gained temporary slots: Power x3 4950 | -10/Subcaves | Entered Materials 4950 | -8/Materials | Evolved 4 slots: Propulsion x1, Utility x3 4951 | -8/Materials | Loaded intel: 12 terminal locations 4953 | -8/Materials | Attached Arachnoskeleton, gained temporary slots: Propulsion x3 5309 | -8/Materials | Lost 6 parts (2p1n3u) 5497 | -8/Materials | Lost 3 parts (3u) 5584 | -8/Materials | Discovered new exit (range 5) 5835 | -8/Materials | Identified exit to Garrison 5839 | -8/Materials | Entered Garrison 5989 | -8/Garrison | Build established: Scavenger-Mutant 5993 | -8/Garrison | Triggered checkpoint 6139 | -8/Garrison | Phase Generator disabled 6159 | -8/Garrison | Core integrity fell below 50% 6217 | -8/Garrison | Triggered checkpoint 6368 | -8/Garrison | Lost 3 parts (2n1u) 6541 | -8/Garrison | Lost 7 parts (2p2n2u1w) 6544 | -8/Garrison | Core integrity fell below 20% 6608 | -8/Garrison | Discovered new exit (range 70) 6608 | -8/Garrison | Discovered new exit (range 19) 6608 | -8/Garrison | Discovered new exit (range 44) 6651 | -8/Garrison | Triggered checkpoint 6755 | -8/Garrison | Triggered checkpoint 6773 | -8/Garrison | Build established: Mutant 6784 | -8/Garrison | Triggered checkpoint 7073 | -8/Garrison | Entered Materials 7720 | -8/Materials | Destroyed by G-47 Trooper with Particle Gun Last Messages --------------- 07642_ R-06 Scavenger collects Lgt. Ion Engine. 07645_ R-06 Scavenger collects Imp. Heat Sink. 07649_ System corrupted: Component data lost. 07649_ R-06 Scavenger collects Aluminum Leg. 07650_ R-06 Scavenger collects Med. Matter Pod. 07654_ R-06 Scavenger collects Particle Gun. 07654_ G-47 Trooper destroyed. 07657_ K-01 Serf collects debris. 07658_ Acquired 40 matter. 07661_ R-06 Scavenger collects Lgt. Nuclear Core. 07677_ &LJJG0GN775&&# QJUTCEEGJWEEFSS| 07680_ Acquired 36 matter. 07681_ R-06 Scavenger collects Imp. Heat Sink. 07689_ K-01 Serf cleans the Processing Tank. 07698_ Dropped Lrn. Missile Launcher. 07698_ Acquired System Shield. 07704_ R-06 Scavenger collects Lrn. Missile Launcher. 07706_ K-01 Serf cleans the Processing Tank. 07713_ UOKGOYGPJBKMLVX0QQGF=J TXUWA OG1D4NZI 07716_ K-01 Serf cleans the Processing Tank. Map ----- +----------------------------------------------------+ | ?????????????????????????????????????????????????? | | ?????????????????????????????????????????????????? | | ?????????????????????????????????????????????????? | | ?????????????????????????????????????????????????? | | ?????????????????????????????????????????????????? | | ?????????????????????????????????????????????????? | | ?????????????????????????????????????????????????? | | ????????????????????? ???????????????????????????? | | ????????????????????? ??????????????????????????? | | ????????????????????? ? ???????????????????????? | | ????????????????????? ??????????????????????? | | ?#########??????????? #??????????????????????? | | ?# !] #??????????? #??????????????????????? | | ?# ! #???######## #??????????????????????? | | ?# #???# #??????????????????????? | | ?# #???# #??????????????????????? | | ??? ?????# """ """ #??????????????????????? | | #####+#??????# """ """ #??????????????????????? | | #??????# """^ """ #?????####?????????????? | | ##### #??????# """ k""" #????? ??????????????? | | ????# #??????# """ """ #???? ???????????????? | | ????# #??????# #???? ????????????????? | | ????# #??????# ] [ #??? #????????????????? | | ##### ######## ##### #??? #????????????????? | | % % #???# #?? #????????????????? | | #####+#########+##???# @### #????????????????? | | ??? ????? ???# g #????????????????? | | #?# "" #?# ?# g #????????????????? | | #?# ""S #?# """ """ # #????????????????? | | #?# "" #?# """ """ # ########????????????????? | | #?# #?# """ """ # #???????????????????????? | | #?#[ ] #?# # #???????????????????????? | | #?########?# ?# #???????????????????????? | | #??????????? ?# #???????????????????????? | | #?????????????######?# #???????????????????????? | | #????????????????????# #???????????????????????? | | #????????????????????# #???????????????????????? | | ?????????????????????# #???????????????????????? | | ?????????????????????# ????????????????????????? | | ?????????????????????# ????????????????????????? | | ????????????????????? ????????????????????????? | | ?????????????????????????????????????????????????? | | ?????????????????????????????????????????????????? | | ?????????????????????????????????????????????????? | | ?????????????????????????????????????????????????? | | ?????????????????????????????????????????????????? | | ?????????????????????????????????????????????????? | | ?????????????????????????????????????????????????? | | ?????????????????????????????????????????????????? | | ?????????????????????????????????????????????????? | +----------------------------------------------------+ Best States ------------- Heat Dissipation 50 Energy Generation 28 Energy Capacity 370 Matter Stores 300 Matter Capacity 300 Sight Range 16 Robot Scan Range 15 Terrain Scan Density 10 Armor Coverage 800 Resistance: EM 15 Utility Shielding 66 Evasion (%) 55 Recoil Reduction 3 Kinecelleration 30 Offensive Hacking 11 Item Schematics ----------------- None Robot Schematics ------------------ None Fabricated ------------ Nothing Alien Tech Used ----------------- None Achievements -------------- None Challenges ------------ None Game ------ Seed BiocellCarbideDoomcannon Manual? 0 Play Time 00:51:26 Cumulative 179.0 hours Start 2024.05.11 @ 13:41:58 End 2024.05.11 @ 14:38:47 Sessions 3 Manual Loads 0 Difficulty Rogue Special Mode None Game No. 148 Rogue 148 Adventurer 0 Explorer 0 Win Type - Total 3 Types 2/0/0/1/0/0/0/0/0 Lore% 59 Gallery% 78 Achievement% 61 Wizard Run 0 Options --------- Layout 2 ASCII 0 Keyboard 1 Movement Numpad Keybinds 0 Fullscreen 1 Font 32/SmallcapsGlow Map View 77x44 Zoom Use 0% Tactical HUD 1 Map Filters NONE Filters NONE Steam 1 RUN: 3c4c78f1-7486-4da2-9c91-edf654e5a3a8